[Event "WYCC 2018 G14"]
[Site "Halkidiki"]
[Date "2018.10.21"]
[Round "2"]
[White "Lomaia, Diana"]
[Black "Saraci, Rinesa"]
[Result "0-1"]
[ECO "C50"]
[WhiteElo "1876"]
[BlackElo "1138"]
[Annotator "NA"]
[PlyCount "94"]
[EventDate "2018.10.20"]
[EventType "swiss"]
[EventCountry "GRE"]
[SourceTitle "playchess.com"]
[Source "ChessBase"]
[SourceQuality "1"]
[TimeControl "40/5400+30:1800+30"]

1. e4 {[%emt 0:00:00]} e5 {[%emt 0:00:00]} 2. Nf3 {[%emt 0:00:00]} Nc6 {[%emt 0:00:00]} 3. Bc4 {[%emt 0:00:36]} Bc5 {[%emt 0:00:47]} 4. d3 {[%emt 0:00:26]} Nf6 {[%emt 0:00:46]} 5. O-O {[%emt 0:01:11]} h6 {[%emt 0:00:51]} 6. c3 {[%emt 0:01:33]} O-O {[%emt 0:00:43]} 7. Bb3 {[%emt 0:00:50]} Bb6 {[%emt 0:03:07]} 8. Nbd2 {[%emt 0:01:09]} d6 {[%emt 0:02:01]} 9. h3 Qe7 {[%emt 0:02:02]} 10. Re1 {[%emt 0:01:38]} Be6 {[%emt 0:01:25]} 11. Bc2 {[%emt 0:02:00]} Rfe8 {[%emt 0:03:07]} 12. Nf1 {[%emt 0:01:57]} d5 {[%emt 0:05:14]} 13. Ng3 {[%emt 0:04:25]} Rad8 {[%emt 0:01:56]} 14. Qe2 $11 {[%emt 0:02:23]} d4 {[%emt 0:04:13]} 15. Bd2 {[%emt 0:04:41]} Ba5 {[%emt 0:04:15]} 16. Ba4 {[%emt 0:06:55]} dxc3 {[%emt 0:04:50]} 17. Bxc3 {[%emt 0:04:54]} Bxc3 {[%emt 0:00:17]} 18. bxc3 {[%emt 0:00:05]} Bd7 {[%emt 0:02:39]} 19. Rab1 {[%emt 0:21:40]} b6 {[%emt 0:06:24]} 20. Nf5 {[%emt 0:04:01]} Qc5 {[%emt 0:07:54]} 21. g4 {[%emt 0:13:50]} Ne7 {[%emt 0:03:21]} 22. Bxd7 {[%emt 0:01:18]} Rxd7 {[%emt 0:00:11]} 23. d4 {[%emt 0:01:09]} exd4 {[%emt 0:02:11]} 24. cxd4 {[%emt 0:00:30]} Qa3 {[%emt 0:03:19]} 25. Rb3 {[%emt 0:01:18]} Qa5 {[%emt 0:02:16]} 26. Ne5 {[%emt 0:00:47]} Nxf5 {[%emt 0:04:24]} 27. Nxd7 {[%emt 0:07:50]} Nxd4 {[%emt 0:00:19]} 28. Nxf6+ {[%emt 0:01:50]} gxf6 {[%emt 0:00:12]} 29. Qd1 {[%emt 0:01:43]} Nxb3 {[%emt 0:01:23]} 30. axb3 {[%emt 0:00:06]} Qb4 {[%emt 0:02:17]} 31. Qb1 {[%emt 0:06:23]} c5 {[%emt 0:01:57]} 32. Re3 {[%emt 0:01:31]} c4 33. Qd1 {[%emt 0:04:42]} cxb3 {[%emt 0:01:34]} 34. Rxb3 {[%emt 0:00:12]} Qxe4 {[%emt 0:00:39]} 35. Re3 {[%emt 0:00:23]} Qc6 {[%emt 0:01:32]} 36. Rd3 {[%emt 0:00:30]} Kg7 {[%emt 0:01:15]} 37. Qd2 {[%emt 0:03:14]} Rc8 {[%emt 0:00:41]} 38. Kh2 {[%emt 0:00:31]} Qc1 {[%emt 0:01:05]} 39. Qb4 Rc4 {[%emt 0:00:56]} 40. Qe7 {[%emt 0:00:00]} Qf4+ {[%emt 0:00:00]} 41. Kg1 {[%emt 0:05:57]} Rc2 {[%emt 0:04:27]} 42. Qe3 {[%emt 0:05:49]} Qxe3 {[%emt 0:01:04]} 43. Rxe3 {[%emt 0:00:09]} Rb2 {[%emt 0:00:23]} 44. Kf1 {[%emt 0:01:20]} a5 {[%emt 0:00:10]} 45. Ke1 a4 46. Re7 {[%emt 0:04:47]} a3 {[%emt 0:00:59]} 47. Ra7 {[%emt 0:00:05]} a2 0-1

[Event "WYCC 2018 G14"]
[Site "Halkidiki"]
[Date "2018.10.21"]
[Round "2"]
[White "Kasaeva, Sofiia"]
[Black "Galvan Cipriani, Viviana"]
[Result "1/2-1/2"]
[ECO "B23"]
[WhiteElo "1874"]
[BlackElo "2109"]
[Annotator "NA"]
[PlyCount "73"]
[EventDate "2018.10.20"]
[EventType "swiss"]
[EventCountry "GRE"]
[SourceTitle "playchess.com"]
[Source "ChessBase"]
[SourceQuality "1"]
[TimeControl "40/5400+30:1800+30"]

1. e4 {[%emt 0:00:00]} c5 {[%emt 0:00:00]} 2. Nc3 {[%emt 0:00:00]} Nc6 {[%emt 0:00:05]} 3. Nge2 {[%emt 0:00:32]} e5 {[%emt 0:01:29]} 4. Nd5 {[%emt 0:00:16]} g6 {[%emt 0:02:24]} 5. Nec3 {[%emt 0:01:24] B23: Closed Sicilian: Lines without g3} a6 {[%emt 0:00:10]} (5... Nd4 6. Bc4 Bg7 7. d3 d6 8. O-O Nh6 9. Bd2 O-O 10. Qc1 Qh4 11. f3 Rb8 12. a4 a6 {1-0 (22) Mamedov,R (2650)-Akkozov,B (2360) Tashkent 2016}) 6. d3 {[%emt 0:15:43]} Bg7 {[%emt 0:02:23]} 7. Bg5 $146 {[%emt 0:08:09]} ({Predecessor:} 7. g3 d6 8. Bg2 h6 9. O-O Nge7 10. f4 exf4 11. gxf4 f5 12. Nxe7 Nxe7 13. exf5 Nxf5 {0-1 (48) Vallejo Pons,F (2355)-Foisor,O (2475) Zaragoza 1996}) 7... f6 {[%emt 0:01:32]} 8. Be3 {[%emt 0:02:35]} d6 {[%emt 0:00:11]} 9. a4 {[%emt 0:08:49]} Be6 {[%emt 0:10:03]} 10. Be2 {[%emt 0:03:39]} Rb8 {[%emt 0:12:03]} 11. O-O {[%emt 0:02:51]} Nh6 {[%emt 0:02:22]} (11... Nge7 $11 {bleibt in der Remisbreite.}) 12. Qd2 {[%emt 0:06:50]} Ng4 {[%emt 0:03:34]} 13. Bxg4 {[%emt 0:00:49]} Bxg4 {[%emt 0:00:14]} 14. f4 {[%emt 0:04:20]} exf4 {[%emt 0:04:42]} 15. Rxf4 {[%emt 0:03:43]} Be6 {[%emt 0:01:39]} 16. Rf2 {[%emt 0:03:56]} O-O {[%emt 0:02:36]} 17. Bh6 {[%emt 0:03:49]} b5 {[%emt 0:03:05]} 18. Bxg7 {[%emt 0:01:45]} Kxg7 {[%emt 0:00:11]} 19. Nf4 {[%emt 0:01:22]} Bf7 {[%emt 0:00:28]} 20. axb5 {[%emt 0:01:08]} axb5 {[%emt 0:00:22]} 21. Raf1 {[%emt 0:02:43]} Ne7 {[%emt 0:06:52]} 22. Rf3 {[%emt 0:12:16]} b4 {[%emt 0:13:05]} 23. Ncd5 {[%emt 0:01:12]} Nxd5 {[%emt 0:00:40]} 24. exd5 {[%emt 0:03:05]} g5 {[%emt 0:09:35]} 25. Ne6+ {[%emt 0:00:52]} Bxe6 {[%emt 0:00:08]} 26. dxe6 {[%emt 0:00:04]} Qe7 {[%emt 0:00:30]} 27. Qe3 {[%emt 0:01:05]} Rbe8 {[%emt 0:01:44]} 28. Re1 {[%emt 0:00:39]} f5 {[%emt 0:02:59]} 29. d4 $11 {[%emt 0:02:52]} f4 {[%emt 0:05:24]} 30. Qe4 {[%emt 0:02:00]} cxd4 {[%emt 0:02:25]} 31. Qxd4+ {[%emt 0:00:18]} Rf6 {[%emt 0:00:10]} 32. Rd3 {[%emt 0:01:58]} Rd8 {[%emt 0:03:49]} 33. Rb3 {[%emt 0:03:35]} Rc8 {[%emt 0:05:34]} 34. Qe4 {[%emt 0:01:32]} Re8 {[%emt 0:00:52]} 35. Qd4 {[%emt 0:00:32]} Rc8 {[%emt 0:00:12]} 36. Qe4 {[%emt 0:00:46]} Re8 {[%emt 0:00:47]} 37. Qd4 {[%emt 0:00:40]} 1/2-1/2

[Event "WYCC 2018 G14"]
[Site "Halkidiki"]
[Date "2018.10.21"]
[Round "2"]
[White "Velea, Anne-Marie"]
[Black "Krasteva, Beloslava"]
[Result "1/2-1/2"]
[ECO "B51"]
[WhiteElo "1859"]
[BlackElo "2089"]
[Annotator "NA"]
[PlyCount "65"]
[EventDate "2018.10.20"]
[EventType "swiss"]
[EventCountry "GRE"]
[SourceTitle "playchess.com"]
[Source "ChessBase"]
[SourceQuality "1"]
[TimeControl "40/5400+30:1800+30"]

1. e4 {[%emt 0:00:00]} c5 {[%emt 0:00:00]} 2. Nf3 {[%emt 0:00:00]} d6 {[%emt 0:00:00]} 3. Bb5+ {[%emt 0:00:00]} Nd7 {[%emt 0:00:12]} 4. d4 {[%emt 0:00:00]} a6 {[%emt 0:00:24]} 5. Bxd7+ {[%emt 0:02:51]} Bxd7 {[%emt 0:00:17]} 6. Nc3 {[%emt 0:03:29]} cxd4 {[%emt 0:00:44]} 7. Qxd4 {[%emt 0:00:15]} Rc8 {[%emt 0:01:11]} 8. O-O {[%emt 0:05:48]} e5 {[%emt 0:00:53]} 9. Qd3 {[%emt 0:01:28]} h6 {[%emt 0:01:12]} 10. Nd2 {[%emt 0:04:32]} Qc7 {[%emt 0:10:27]} 11. a4 {[%emt 0:07:14]} Nf6 {[%emt 0:02:03]} 12. Rd1 {[%emt 0:03:18]} Be7 {[%emt 0:02:21]} 13. Nf1 {[%emt 0:01:59]} O-O {[%emt 0:03:15]} 14. Ne3 {[%emt 0:00:36]} Be6 {[%emt 0:01:48]} 15. Ncd5 {[%emt 0:07:34]} (15. a5 $11 {keeps the balance.}) 15... Bxd5 {[%emt 0:03:10]} (15... Nxd5 $17 16. Nxd5 Bxd5 17. Qxd5 Qxc2) 16. exd5 {[%emt 0:00:50]} Rfe8 {[%emt 0:02:51]} 17. c3 $15 {[%emt 0:03:18]} Bf8 {[%emt 0:07:06]} 18. Qf5 {[%emt 0:11:48]} Qd7 {[%emt 0:06:09]} 19. Qf3 {[%emt 0:01:53]} e4 {[%emt 0:08:56]} 20. Qe2 {[%emt 0:03:42]} g6 {[%emt 0:01:58]} 21. a5 {[%emt 0:05:56]} Bg7 {[%emt 0:02:10]} 22. Bd2 {[%emt 0:03:57]} Qe7 {[%emt 0:14:35]} 23. Rab1 {[%emt 0:14:00]} Nd7 {[%emt 0:04:01]} 24. Nc4 {[%emt 0:03:36]} Nc5 {[%emt 0:03:42]} 25. Bf4 {[%emt 0:01:48]} Nd3 {[%emt 0:05:35]} 26. Bxd6 {[%emt 0:02:18]} Qd8 {[%emt 0:01:22]} 27. b3 {[%emt 0:03:51]} Bxc3 {[%emt 0:02:35]} 28. Ba3 {[%emt 0:02:41]} Qxd5 {[%emt 0:05:33]} 29. Nb6 {[%emt 0:02:37]} Qf5 {[%emt 0:02:52]} 30. Nxc8 {[%emt 0:00:29]} Rxc8 {[%emt 0:00:07]} 31. Bc1 {[%emt 0:00:40]} h5 {[%emt 0:01:17]} 32. Bd2 {[%emt 0:00:35]} Be5 {[%emt 0:00:59]} 33. Be3 1/2-1/2

[Event "WYCC 2018 G14"]
[Site "Halkidiki"]
[Date "2018.10.21"]
[Round "2"]
[White "Tamrazyan, Gohar"]
[Black "Jyothsna L"]
[Result "0-1"]
[ECO "A06"]
[WhiteElo "1824"]
[BlackElo "2060"]
[Annotator "NA"]
[PlyCount "96"]
[EventDate "2018.10.20"]
[EventType "swiss"]
[EventCountry "GRE"]
[SourceTitle "playchess.com"]
[Source "ChessBase"]
[SourceQuality "1"]
[TimeControl "40/5400+30:1800+30"]

1. Nf3 {[%emt 0:00:00]} d5 {[%emt 0:01:20]} 2. e3 {[%emt 0:00:00]} c5 {[%emt 0:01:10]} 3. b3 {[%emt 0:00:21]} Nc6 {[%emt 0:01:18]} 4. Bb2 {[%emt 0:01:25]} Bg4 {[%emt 0:01:44]} 5. Be2 {[%emt 0:02:23]} e6 {[%emt 0:01:54]} 6. O-O {[%emt 0:03:13]} Nf6 {[%emt 0:01:40]} 7. d4 {[%emt 0:02:10]} Bxf3 {[%emt 0:06:21] A06: Réti Opening:1 Nf3 d5} 8. Bxf3 {[%emt 0:00:21]} cxd4 {[%emt 0:00:10]} 9. exd4 {[%emt 0:02:33]} g6 $146 {[%emt 0:03:37]} ({Predecessor:} 9... Qb6 10. Qd3 Rc8 11. a3 Bd6 12. g3 O-O 13. Bg2 {0-1 (62) Popchev,M (2426)-Dimitrov,R (2437) Sunny Beach 2013}) 10. Nd2 {[%emt 0:10:50]} Bg7 {[%emt 0:00:52]} 11. Be2 {[%emt 0:05:08]} O-O {[%emt 0:01:23]} 12. Nf3 {[%emt 0:02:43]} Rc8 {[%emt 0:03:39]} 13. c4 Ne4 {[%emt 0:09:04]} 14. Rc1 {[%emt 0:23:01]} Bh6 {[%emt 0:06:18]} 15. Rb1 {[%emt 0:04:30]} Qa5 {[%emt 0:12:10]} 16. a3 {[%emt 0:02:55]} Nc3 {[%emt 0:04:45]} 17. Bxc3 {[%emt 0:00:28]} Qxc3 {[%emt 0:00:11]} 18. cxd5 {[%emt 0:19:10]} exd5 {[%emt 0:01:33]} 19. Bb5 {[%emt 0:00:44]} Bg7 {[%emt 0:21:10]} 20. Bxc6 {[%emt 0:02:32]} bxc6 {[%emt 0:02:16]} 21. Re1 {[%emt 0:02:10]} Qa5 {[%emt 0:03:56]} 22. a4 {[%emt 0:00:36]} c5 {[%emt 0:02:15]} 23. dxc5 {[%emt 0:00:50]} Qxc5 {[%emt 0:00:13]} 24. b4 {[%emt 0:01:50]} Qd6 {[%emt 0:05:18]} 25. Nd4 {[%emt 0:05:03]} Qb6 {[%emt 0:01:29]} 26. Ne2 {[%emt 0:01:13]} Rfd8 {[%emt 0:00:39]} 27. Nf4 {[%emt 0:01:04]} d4 {[%emt 0:00:25]} 28. Nd3 {[%emt 0:00:14]} Rc3 {[%emt 0:01:54]} 29. Rb3 {[%emt 0:01:48]} Qc6 {[%emt 0:02:07]} 30. Rxc3 {[%emt 0:03:37]} dxc3 {[%emt 0:00:42]} 31. Qc2 {[%emt 0:00:32]} Qc4 {[%emt 0:00:28]} 32. Rd1 {[%emt 0:01:15]} a6 {[%emt 0:00:20]} 33. g3 {[%emt 0:00:34]} h5 {[%emt 0:00:47]} 34. h4 Rd5 {[%emt 0:00:32]} 35. Kh2 {[%emt 0:01:32]} Qe4 {[%emt 0:01:07]} 36. Kg1 {[%emt 0:00:30]} Bf6 {[%emt 0:00:23]} 37. f4 {[%emt 0:00:41]} Be7 {[%emt 0:01:03]} 38. Kh2 {[%emt 0:00:31]} Bxb4 {[%emt 0:00:35]} 39. Kg1 {[%emt 0:00:26]} a5 {[%emt 0:00:52]} 40. Kh2 {[%emt 0:00:00]} Qf3 {[%emt 0:00:00]} 41. Nf2 {[%emt 0:06:14]} Rd2 {[%emt 0:04:10]} 42. Rxd2 {[%emt 0:00:35]} cxd2 {[%emt 0:00:28]} 43. Nd1 {[%emt 0:00:52]} Qe2+ {[%emt 0:00:33]} 44. Kh3 {[%emt 0:04:25]} Bc5 {[%emt 0:02:37]} 45. Qxc5 {[%emt 0:00:47]} Qxd1 {[%emt 0:00:05]} 46. Qc8+ {[%emt 0:00:44]} Kg7 {[%emt 0:00:39]} 47. Qc3+ Kh7 48. Qc6 {[%emt 0:09:58]} Qg4+ {[%emt 0:00:25]} 0-1

[Event "WYCC 2018 G14"]
[Site "Halkidiki"]
[Date "2018.10.21"]
[Round "2"]
[White "Jaufarally, Nadia"]
[Black "Wikar, Martyna"]
[Result "0-1"]
[ECO "B30"]
[WhiteElo "1810"]
[BlackElo "2024"]
[Annotator "NA"]
[PlyCount "96"]
[EventDate "2018.10.20"]
[EventType "swiss"]
[EventCountry "GRE"]
[SourceTitle "playchess.com"]
[Source "ChessBase"]
[SourceQuality "1"]
[TimeControl "40/5400+30:1800+30"]

1. e4 {[%emt 0:00:00]} c5 {[%emt 0:00:00]} 2. Nf3 {[%emt 0:00:00]} Nc6 {[%emt 0:00:00]} 3. Bb5 {[%emt 0:00:00]} Na5 {[%emt 0:00:08]} 4. d4 {[%emt 0:08:30]} a6 {[%emt 0:01:12] B30: Sizilianisch (Rossolimo-Variante)} 5. Bd3 {[%emt 0:01:25]} e6 {[%emt 0:04:57]} (5... cxd4 6. Nxd4 Nc6 7. Nxc6 dxc6 8. f4 e5 9. fxe5 Bc5 10. Nd2 Nh6 11. Nf3 Ng4 12. Qe2 {0-1 (32) Laznicka,V (2677)-Jakubiec,A (2515) Czechia 2013}) 6. O-O {[%emt 0:08:54]} c4 $146 {[%emt 0:08:29]} ({Vorgänger:} 6... cxd4 7. Nxd4 Ne7 8. Nc3 Ng6 9. Kh1 b5 10. f4 Bc5 11. Nf3 Nc6 {0-1 (32) Kula,D (2150)-Certek,P (2264) Tatranske Zruby 2015}) 7. Be2 {[%emt 0:00:42]} d5 {[%emt 0:00:59]} 8. e5 {[%emt 0:09:39]} Ne7 {[%emt 0:01:05]} 9. Bg5 {[%emt 0:11:30]} Qc7 {[%emt 0:02:16]} 10. Bxe7 {[%emt 0:08:11]} Bxe7 {[%emt 0:00:54]} 11. Ne1 {[%emt 0:02:46]} Nc6 {[%emt 0:03:13]} 12. c3 {[%emt 0:01:48]} O-O {[%emt 0:06:01]} 13. f4 {[%emt 0:02:19]} f6 {[%emt 0:00:37]} 14. Nf3 {[%emt 0:05:31]} b5 {[%emt 0:02:46]} 15. a3 {[%emt 0:06:56]} a5 {[%emt 0:01:45]} 16. Nbd2 {[%emt 0:08:49]} fxe5 {[%emt 0:03:28]} 17. Nxe5 {[%emt 0:01:37]} Nxe5 {[%emt 0:00:26]} 18. fxe5 {[%emt 0:00:27]} Bd7 {[%emt 0:01:16]} 19. Bg4 {[%emt 0:07:55]} Qb6 {[%emt 0:04:58]} 20. Qe2 {[%emt 0:04:15]} b4 {[%emt 0:05:17]} 21. axb4 {[%emt 0:02:13]} axb4 {[%emt 0:00:17]} 22. Rxa8 {[%emt 0:02:53]} Rxa8 {[%emt 0:00:08]} 23. Qf3 {[%emt 0:00:15]} Rf8 {[%emt 0:00:41]} 24. Qh3 {[%emt 0:00:36]} Rxf1+ {[%emt 0:05:34]} 25. Nxf1 {[%emt 0:00:05]} Bg5 {[%emt 0:01:09]} 26. Qf3 {[%emt 0:02:15]} bxc3 {[%emt 0:02:49]} 27. bxc3 {[%emt 0:00:13]} Qb1 {[%emt 0:02:13]} 28. Qh3 {[%emt 0:00:51]} Kf8 {[%emt 0:07:44]} 29. Qf3+ {[%emt 0:01:48]} Ke7 {[%emt 0:01:28]} 30. g3 {[%emt 0:01:16]} Be8 {[%emt 0:10:36]} 31. h4 {[%emt 0:00:54]} Bh6 {[%emt 0:00:16]} 32. Bh3 {[%emt 0:00:42]} Bg6 {[%emt 0:00:52]} 33. g4 {[%emt 0:00:29]} Be4 {[%emt 0:01:08]} 34. Qf2 {[%emt 0:00:36]} Qd3 {[%emt 0:01:34]} 35. Bg2 {[%emt 0:00:32]} Bxg2 {[%emt 0:02:27]} 36. Kxg2 {[%emt 0:00:08]} Bc1 {[%emt 0:00:47]} 37. Qa2 {[%emt 0:00:50]} Qe4+ {[%emt 0:00:46]} 38. Kf2 {[%emt 0:00:34]} Qxg4 {[%emt 0:02:06]} 39. Qa7+ {[%emt 0:00:19]} Kf8 {[%emt 0:00:10]} 40. Qb8+ {[%emt 0:00:00]} Kf7 {[%emt 0:00:00]} 41. Qb7+ {[%emt 0:09:55]} Kg6 {[%emt 0:00:56]} 42. Ng3 {[%emt 0:11:25] [#]} Be3+ $1 {[%emt 0:01:06]} 43. Kxe3 {[%emt 0:00:38]} Qxg3+ {[%emt 0:00:06]} 44. Kd2 {[%emt 0:01:53]} Qd3+ {[%emt 0:00:35]} 45. Ke1 {[%emt 0:02:47]} Qxc3+ {[%emt 0:00:07]} 46. Kf1 {[%emt 0:02:00]} Qxd4 {[%emt 0:00:10]} 47. Qc7 {[%emt 0:02:06]} Qxh4 {[%emt 0:00:21]} 48. Qd6 $19 {[%emt 0:00:31]} Qf4+ {[%emt 0:00:28]} 0-1

[Event "WYCC 2018 G14"]
[Site "Halkidiki"]
[Date "2018.10.21"]
[Round "2"]
[White "Somton, Anita"]
[Black "Burdot, Clara"]
[Result "1/2-1/2"]
[ECO "B01"]
[WhiteElo "1787"]
[BlackElo "1472"]
[Annotator "NA"]
[PlyCount "61"]
[EventDate "2018.10.20"]
[EventType "swiss"]
[EventCountry "GRE"]
[SourceTitle "playchess.com"]
[Source "ChessBase"]
[SourceQuality "1"]
[TimeControl "40/5400+30:1800+30"]

1. e4 {[%emt 0:00:00]} d5 {[%emt 0:00:00]} 2. exd5 {[%emt 0:00:01]} Qxd5 {[%emt 0:00:00]} 3. Nc3 {[%emt 0:00:13]} Qd6 {[%emt 0:00:00]} 4. d4 {[%emt 0:00:18]} Nf6 {[%emt 0:00:00]} 5. Nf3 {[%emt 0:00:56]} c6 {[%emt 0:00:04]} 6. Ne5 {[%emt 0:00:06]} Nbd7 {[%emt 0:00:09]} 7. Nc4 {[%emt 0:00:21]} Qc7 {[%emt 0:00:08]} 8. Qf3 {[%emt 0:00:19]} Nb6 {[%emt 0:00:24]} 9. Bf4 {[%emt 0:00:45]} Qd8 {[%emt 0:00:09]} 10. Be5 {[%emt 0:00:44]} Bg4 {[%emt 0:00:44]} 11. Qf4 {[%emt 0:04:50]} Be6 {[%emt 0:03:41]} 12. Bc7 {[%emt 0:12:15]} Nbd5 {[%emt 0:06:49]} 13. Qxf6 {[%emt 0:06:57]} Qxc7 {[%emt 0:03:24]} 14. Qf3 {[%emt 0:02:37]} g6 {[%emt 0:06:06]} 15. Nxd5 {[%emt 0:10:48]} Bxd5 {[%emt 0:01:56]} 16. Qg3 {[%emt 0:01:06]} Qxg3 {[%emt 0:02:24]} 17. hxg3 {[%emt 0:00:10]} Bg7 {[%emt 0:01:11]} 18. c3 {[%emt 0:01:29]} h5 {[%emt 0:08:31]} 19. Ne3 {[%emt 0:02:34]} O-O-O {[%emt 0:06:05]} 20. Nxd5 {[%emt 0:03:16]} cxd5 {[%emt 0:05:30]} 21. O-O-O {[%emt 0:02:32]} a6 {[%emt 0:05:38]} 22. a4 {[%emt 0:03:01]} Rhe8 {[%emt 0:01:44]} 23. f4 {[%emt 0:04:59]} f6 {[%emt 0:03:35]} 24. Bd3 {[%emt 0:01:11]} f5 {[%emt 0:01:47]} 25. Rde1 {[%emt 0:02:59]} Rd6 {[%emt 0:03:02]} 26. Re2 {[%emt 0:01:23]} Bf6 {[%emt 0:01:48]} 27. Kb1 {[%emt 0:03:15]} Kb8 {[%emt 0:02:41]} 28. Rhe1 {[%emt 0:01:37]} Rh8 {[%emt 0:01:56]} 29. Rh1 {[%emt 0:03:02]} Rdd8 {[%emt 0:03:39]} 30. Re6 Rdg8 {[%emt 0:02:03]} 31. Bc2 {[%emt 0:06:10]} 1/2-1/2

[Event "WYCC 2018 G14"]
[Site "Halkidiki"]
[Date "2018.10.21"]
[Round "2"]
[White "Murzina, Agata"]
[Black "Eizaguerri Floris, Maria"]
[Result "0-1"]
[ECO "B25"]
[WhiteElo "1768"]
[BlackElo "1987"]
[Annotator "NA"]
[PlyCount "100"]
[EventDate "2018.10.20"]
[EventType "swiss"]
[EventCountry "GRE"]
[SourceTitle "playchess.com"]
[Source "ChessBase"]
[SourceQuality "1"]
[TimeControl "40/5400+30:1800+30"]

1. e4 {[%emt 0:00:47]} c5 {[%emt 0:00:00]} 2. Nc3 {[%emt 0:00:11]} Nc6 {[%emt 0:00:00]} 3. g3 {[%emt 0:00:05]} g6 {[%emt 0:00:00]} 4. Bg2 {[%emt 0:00:05]} Bg7 {[%emt 0:00:01]} 5. d3 {[%emt 0:00:06]} d6 {[%emt 0:00:06]} 6. f4 {[%emt 0:00:04]} e6 {[%emt 0:00:33]} 7. Nf3 {[%emt 0:00:07]} Nge7 {[%emt 0:00:16]} 8. O-O {[%emt 0:00:15]} O-O {[%emt 0:00:14]} 9. Rb1 {[%emt 0:00:36]} Rb8 {[%emt 0:01:45]} 10. Be3 {[%emt 0:01:22]} Nd4 {[%emt 0:00:11]} 11. Ne2 {[%emt 0:00:33]} Nxf3+ {[%emt 0:07:47]} 12. Bxf3 {[%emt 0:03:11]} b6 {[%emt 0:04:10]} 13. c3 {[%emt 0:00:16]} d5 {[%emt 0:07:27] B25: Closed Sicilian: 3 g3, lines without early Be3} 14. e5 {[%emt 0:05:12]} Nc6 $146 {[%emt 0:01:29]} ({Predecessor:} 14... d4 15. cxd4 Nf5 16. Bf2 cxd4 17. Qa4 Bb7 18. Bxb7 Rxb7 19. Rfc1 Rd7 20. Rc6 h5 21. Rbc1 {1-0 (37) Pieper Emden,C (2365)-Euler,G (2325) Germany 1994}) 15. g4 {[%emt 0:08:36]} Qe7 {[%emt 0:04:31]} 16. g5 {[%emt 0:08:09]} Bb7 {[%emt 0:06:49]} 17. Kg2 {[%emt 0:02:48]} b5 {[%emt 0:03:41]} 18. d4 {[%emt 0:01:29]} cxd4 {[%emt 0:01:09]} 19. cxd4 {[%emt 0:06:14]} Rfc8 {[%emt 0:03:48]} 20. h4 {[%emt 0:00:22]} b4 {[%emt 0:02:25]} 21. b3 {[%emt 0:02:22]} a5 {[%emt 0:01:53]} 22. h5 {[%emt 0:01:15]} Ba6 {[%emt 0:02:00]} 23. hxg6 {[%emt 0:00:09]} fxg6 {[%emt 0:00:39]} 24. Rh1 {[%emt 0:00:08]} Na7 {[%emt 0:03:35]} 25. Ng1 {[%emt 0:00:38]} Nb5 {[%emt 0:02:25]} 26. Rb2 {[%emt 0:00:11]} Rc3 {[%emt 0:05:38]} 27. Qe1 {[%emt 0:03:10]} Rbc8 {[%emt 0:00:51]} 28. Bd1 {[%emt 0:00:45]} Na3 {[%emt 0:04:36]} 29. Bd2 {[%emt 0:03:37]} R3c7 {[%emt 0:00:55]} 30. Qh4 {[%emt 0:00:19]} Bf8 {[%emt 0:00:19]} 31. Nh3 {[%emt 0:00:11]} Bd3 {[%emt 0:13:50]} 32. Nf2 {[%emt 0:14:11]} Bf5 {[%emt 0:00:33]} 33. Be3 {[%emt 0:18:09]} Nc2 {[%emt 0:03:18]} 34. Bxc2 {[%emt 0:00:17]} Rxc2 {[%emt 0:00:21]} 35. Rhb1 {[%emt 0:00:57]} R8c3 {[%emt 0:04:51]} 36. Qg3 {[%emt 0:04:58]} Qb7 {[%emt 0:02:52]} 37. Kg1 {[%emt 0:00:48]} Qa6 {[%emt 0:02:30]} 38. Nd1 {[%emt 0:06:00]} Rc6 {[%emt 0:00:58]} 39. Qf3 {[%emt 0:04:58]} Be4 {[%emt 0:06:41]} 40. Qg4 {[%emt 0:00:00]} Bf5 {[%emt 0:00:00]} 41. Qf3 {[%emt 0:02:32]} Be4 {[%emt 0:05:26]} 42. Qg4 {[%emt 0:00:08]} Kf7 {[%emt 0:00:14]} 43. Qh4 {[%emt 0:03:19]} Qe2 {[%emt 0:02:52]} 44. Rxc2 {[%emt 0:04:28]} Rxc2 {[%emt 0:00:13]} 45. Bf2 {[%emt 0:00:29]} Qf3 {[%emt 0:01:47]} 46. Ne3 {[%emt 0:03:18]} Rxf2 {[%emt 0:01:11]} 47. Rc1 {[%emt 0:00:45]} Rg2+ {[%emt 0:00:21]} 48. Kh1 {[%emt 0:00:08]} Rg4+ {[%emt 0:00:25]} 49. Kh2 {[%emt 0:00:20]} Rxh4+ {[%emt 0:00:06]} 50. Kg1 {[%emt 0:00:05]} Rh1# {[%emt 0:00:06]} 0-1

[Event "WYCC 2018 G14"]
[Site "Halkidiki"]
[Date "2018.10.21"]
[Round "2"]
[White "Gabbani, Sara"]
[Black "Alimova, Sevinch"]
[Result "1/2-1/2"]
[ECO "B23"]
[WhiteElo "1764"]
[BlackElo "1596"]
[Annotator "NA"]
[PlyCount "91"]
[EventDate "2018.10.20"]
[EventType "swiss"]
[EventCountry "GRE"]
[SourceTitle "playchess.com"]
[Source "ChessBase"]
[SourceQuality "1"]
[TimeControl "40/5400+30:1800+30"]

1. e4 {[%emt 0:00:00]} c5 {[%emt 0:00:00]} 2. Nc3 {[%emt 0:00:00]} e6 {[%emt 0:00:22]} 3. Nge2 {[%emt 0:00:00]} Nc6 {[%emt 0:00:25]} 4. g3 {[%emt 0:01:21]} d5 {[%emt 0:03:06]} 5. exd5 {[%emt 0:00:20]} exd5 {[%emt 0:00:08]} 6. d4 {[%emt 0:00:19]} Be6 {[%emt 0:05:03]} 7. Bg2 {[%emt 0:04:41]} cxd4 {[%emt 0:17:53]} 8. Nxd4 {[%emt 0:00:22]} Bb4 {[%emt 0:02:28]} 9. O-O {[%emt 0:07:14]} Bxc3 {[%emt 0:05:22]} 10. bxc3 {[%emt 0:00:32]} Nge7 {[%emt 0:02:22]} 11. Nxe6 {[%emt 0:18:27]} fxe6 {[%emt 0:00:54]} 12. Qh5+ {[%emt 0:03:14]} g6 {[%emt 0:04:09]} 13. Qg4 {[%emt 0:03:54]} Nf5 {[%emt 0:04:22]} 14. Re1 {[%emt 0:03:12]} Qd7 {[%emt 0:03:35]} 15. Ba3 {[%emt 0:04:11]} O-O-O {[%emt 0:02:02]} 16. Qa4 {[%emt 0:07:27]} Nd6 {[%emt 0:17:08]} 17. Bc5 {[%emt 0:07:40]} b6 {[%emt 0:06:16]} 18. Bh3 {[%emt 0:02:26]} Nf5 {[%emt 0:02:53]} 19. Be3 {[%emt 0:03:03]} Na5 {[%emt 0:01:36]} 20. Qb4 {[%emt 0:03:06]} Qc6 {[%emt 0:02:42]} 21. Bf4 {[%emt 0:02:56]} Rhe8 {[%emt 0:03:35]} 22. Bf1 {[%emt 0:01:22]} Nc4 {[%emt 0:02:15]} 23. a4 {[%emt 0:00:44]} a5 {[%emt 0:02:02]} 24. Qb3 {[%emt 0:01:07]} Nfd6 {[%emt 0:01:42]} 25. Rab1 {[%emt 0:01:43]} Kb7 {[%emt 0:01:59]} 26. f3 {[%emt 0:10:18]} Ka7 {[%emt 0:02:25]} 27. Bxd6 {[%emt 0:03:42]} Rxd6 {[%emt 0:00:25]} 28. Bxc4 {[%emt 0:01:24]} dxc4 {[%emt 0:00:32]} 29. Qb5 {[%emt 0:00:11]} Qxb5 {[%emt 0:00:58]} 30. Rxb5 {[%emt 0:00:25]} Rd2 {[%emt 0:02:10]} 31. Rb2 {[%emt 0:00:26]} Rd6 {[%emt 0:01:00]} 32. Re4 {[%emt 0:01:06]} Rc8 {[%emt 0:00:30]} 33. Kf2 {[%emt 0:03:09]} Rc5 {[%emt 0:01:07]} 34. Ke2 {[%emt 0:02:24]} Kb7 {[%emt 0:01:10]} 35. Rb1 {[%emt 0:01:53]} Rcd5 {[%emt 0:01:30]} 36. Rb2 {[%emt 0:01:17]} Rc5 {[%emt 0:00:18]} 37. h4 {[%emt 0:00:13]} Kc6 {[%emt 0:00:42]} 38. Rd4 {[%emt 0:01:01]} Rxd4 {[%emt 0:01:06]} 39. cxd4 {[%emt 0:00:04]} c3 {[%emt 0:00:29]} 40. Rb3 {[%emt 0:00:00]} Rc4 {[%emt 0:00:00]} 41. Ra3 {[%emt 0:02:32]} Kd5 {[%emt 0:00:52]} 42. Kd3 {[%emt 0:02:13]} Rxd4+ {[%emt 0:04:14]} 43. Kxc3 {[%emt 0:00:25]} Kc5 {[%emt 0:02:09]} 44. Ra1 {[%emt 0:04:15]} Rc4+ {[%emt 0:04:28]} 45. Kd3 {[%emt 0:02:09]} Rd4+ {[%emt 0:00:46]} 46. Kc3 1/2-1/2